fUSD/lending_fUSD_20260408
["ID","MTS","AMOUNT","RATE_DAILY","PERIOD"]
[420064909,1775645455836,-750.349039,0.00013699,2]
[420064910,1775645455846,-151.0,0.00013699,2]
[420064911,1775645455856,-1096.1346,0.00013699,2]
[420064912,1775645455866,-2615.256956,0.00013699,2]
[420064913,1775645455876,-187.115827,0.00013699,2]
[420064914,1775645455887,-750.349039,0.00013699,2]
[420064915,1775645455897,-151.0,0.00013699,2]
[420064916,1775645455907,-1096.1346,0.00013699,2]
[420064917,1775645455917,-2615.256956,0.00013699,2]
[420064918,1775645455927,-750.349039,0.00013699,2]
[420064919,1775645455937,-1096.1346,0.00013699,2]
[420064920,1775645455946,-2615.256956,0.00013699,2]
[420064921,1775645455956,-151.0,0.00013699,2]
[420064922,1775645455966,-1096.1346,0.00013699,2]
[420064923,1775645455975,-2615.256956,0.00013699,2]
[420064924,1775645455985,-151.0,0.00013699,2]
[420064925,1775645455995,-2272.545345,0.00013699,2]
[420064926,1775645456005,-151.0,0.00013699,2]
[420064927,1775645456015,-151.0,0.00013699,2]
[420064928,1775645456025,-1827.748919,0.00013699,2]
[420064929,1775645456035,-2272.545345,0.00013699,2]
[420064930,1775645456045,-296.131846,0.00013699,2]
[420064931,1775645456055,-233.84757239,0.00013699,2]
[420064932,1775645456065,-500.0,0.00013699,2]
[420064933,1775645456075,-500.0,0.00013699,2]
[420064934,1775645456085,-176.66503354,0.00013699,2]
[420064935,1775645456095,-500.0,0.00013699,2]
[420064937,1775645456105,-500.0,0.00013699,2]
[420064938,1775645456115,-500.0,0.00013699,2]
[420064939,1775645456124,-500.0,0.00013699,2]
[420064940,1775645456134,-500.0,0.00013699,2]
[420064941,1775645456144,-500.0,0.00013699,2]
[420064942,1775645456154,-500.27274026,0.00013699,2]
[420064943,1775645456164,-500.0,0.00013699,2]
[420064944,1775645456174,-500.0,0.00013699,2]
[420064945,1775645456183,-500.0,0.00013699,2]
[420064946,1775645456193,-500.0,0.00013699,2]
[420064947,1775645456202,-500.0,0.00013699,2]
[420064948,1775645456212,-500.0,0.00013699,2]
[420064949,1775645456384,-500.0,0.00013699,2]
[420064950,1775645456394,-501.53334874,0.00013699,2]
[420064951,1775645456404,-500.0,0.00013699,2]
[420064952,1775645456414,-500.0,0.00013699,2]
[420064953,1775645456424,-500.0,0.00013699,2]
[420064954,1775645456434,-500.0,0.00013699,2]
[420064955,1775645456443,-500.0,0.00013699,2]
[420064956,1775645456452,-500.0,0.00013699,2]
[420064957,1775645456462,-500.32940014,0.00013699,2]
[420064958,1775645456472,-500.0,0.00013699,2]
[420064959,1775645456482,-500.0,0.00013699,2]
[420064960,1775645456492,-391.33806684,0.00013699,2]
[420064961,1775645456502,-1000.0,0.00013699,7]
[420064962,1775645456512,-538.78941312,0.00013699,2]
[420064963,1775645456522,-230.66718579,0.00013699,2]
[420064964,1775645456533,-500.0,0.00013699,2]
[420064965,1775645456543,-182.2,0.00013699,2]
[420064966,1775645456553,-200.0,0.00013699,2]
[420064967,1775645456562,-151.0,0.00013699,2]
[420064968,1775645456572,-171.208264,0.00013699,2]
[420064969,1775645456582,-151.0,0.00013699,2]
[420064970,1775645456592,-171.208264,0.00013699,2]
[420064971,1775645456601,-171.208264,0.00013699,2]
[420064972,1775645456612,-171.208264,0.00013699,2]
[420064973,1775645456622,-151.0,0.00013699,2]
[420064974,1775645456633,-151.0,0.00013699,2]
[420064975,1775645456642,-156.431738,0.00013699,2]
[420064976,1775645456652,-151.0,0.00013699,2]
[420064977,1775645456662,-151.0,0.00013699,2]
[420064978,1775645456672,-151.0,0.00013699,2]
[420064979,1775645456681,-151.0,0.00013699,2]
[420064980,1775645456690,-2000.0,0.00013699,2]
[420064981,1775645456699,-200.0,0.00013699,2]
[420064982,1775645456709,-793.72,0.00013699,2]
[420064983,1775645456719,-813.0,0.00013699,2]
[420064984,1775645456729,-813.0,0.00013699,2]
[420064985,1775645456739,-813.0,0.00013699,2]
[420064986,1775645456748,-813.0,0.00013699,2]
[420064987,1775645456758,-813.0,0.00013699,2]
[420064988,1775645456768,-813.0,0.00013699,2]
[420064989,1775645456778,-813.0,0.00013699,2]
[420064990,1775645456788,-813.0,0.00013699,2]
[420064991,1775645456798,-813.0,0.00013699,2]
[420064992,1775645456808,-813.0,0.00013699,2]
[420064993,1775645456818,-813.0,0.00013699,2]
[420064994,1775645456828,-813.0,0.00013699,2]
[420064995,1775645456838,-813.0,0.00013699,2]
[420064996,1775645456848,-813.0,0.00013699,2]
[420064997,1775645456857,-813.0,0.00013699,2]
[420064998,1775645456867,-813.0,0.00013699,2]
[420064999,1775645456876,-813.0,0.00013699,2]
[420065000,1775645456886,-813.0,0.00013699,2]
[420065001,1775645456897,-813.0,0.00013699,2]
[420065002,1775645456906,-813.0,0.00013699,2]
[420065003,1775645456916,-813.0,0.00013699,2]
[420065004,1775645456926,-813.0,0.00013699,2]
[420065005,1775645456936,-813.0,0.00013699,2]
[420065006,1775645456946,-835.19151233,0.00013699,2]
[420065007,1775645456955,-4775.4,0.000137,2]
[420065008,1775645456965,-4775.4,0.000137,2]
[420065009,1775645456975,-4775.4,0.000137,2]
[420065010,1775645456985,-4775.4,0.000137,2]
[420065011,1775645456994,-4775.4,0.000137,2]
[420065012,1775645457005,-166.66,0.00013707,2]
[420065013,1775645457015,-896.0,0.00013723,5]
[420065014,1775645457025,-166.66,0.00013836,2]
[420065015,1775645457034,-200.0,0.00013836,2]
[420065016,1775645457044,-1328.00821915,0.00013836,2]
[420065017,1775645457054,-200.0,0.00013836,2]
[420065018,1775645457064,-218.589172,0.00013866,2]
[420065019,1775645457074,-150.0,0.00013973,2]
[420065020,1775645457084,-150.0,0.00013973,2]
[420065021,1775645457094,-166.66,0.00013973,2]
[420065022,1775645457103,-793.72,0.00013973,2]
[420065023,1775645457113,-200.0,0.00013974,2]
[420065024,1775645457124,-200.0,0.00013974,2]
[420065025,1775645457134,-1500.0,0.00014,2]
[420065026,1775645457144,-171.59,0.00014066,2]
[420065027,1775645457153,-166.66,0.0001411,2]
[420065028,1775645457162,-200.0,0.00014114,2]
[420065029,1775645457172,-200.0,0.00014114,2]
[420065030,1775645457183,-166.66,0.00014145,2]
[420065031,1775645457192,-225.792706,0.00014151,2]
[420065032,1775645457202,-155.32006583,0.00014199,2]
[420065033,1775645457212,-200.0,0.00014221,2]
[420065034,1775645457222,-1428.38747117,0.00014221,2]
[420065035,1775645457232,-201.93286099,0.00014221,2]
[420065036,1775645457243,-166.66,0.00014247,2]
[420065037,1775645457253,-150.0,0.00014247,2]
[420065038,1775645457262,-1000.0,0.00014247,2]
[420065039,1775645457272,-1082.33512146,0.00014247,2]
[420065040,1775645457282,-1078.47924791,0.00014247,2]
[420065041,1775645457292,-1000.0,0.00014247,2]
[420065042,1775645457301,-1000.0,0.00014247,2]
[420065043,1775645457311,-1000.0,0.00014247,2]
[420065044,1775645457321,-1000.0,0.00014247,2]
[420065045,1775645457331,-1000.0,0.00014247,2]
[420065046,1775645457340,-1000.0,0.00014247,2]
[420065047,1775645457350,-1000.0,0.00014247,2]
[420065048,1775645457359,-501.12672973,0.00014247,2]
[420065049,1775645457370,-1000.0,0.00014247,2]
[420065050,1775645457380,-1000.0,0.00014247,2]
[420065051,1775645457389,-1144.24089955,0.00014247,2]
[420065052,1775645457399,-1000.0,0.00014247,2]
[420065053,1775645457409,-1000.0,0.00014247,2]
[420065054,1775645457419,-945.29859118,0.00014247,2]
[420065055,1775645457428,-242.46089406,0.00014247,2]
[420065056,1775645457438,-786.49380402,0.00014247,2]
[420065057,1775645457448,-1000.0,0.00014247,2]
[420065058,1775645457458,-1000.0,0.00014247,2]
[420065059,1775645457469,-1000.0,0.00014247,2]
[420065060,1775645457479,-793.72,0.00014247,2]
[420065061,1775645457488,-200.0,0.00014255,2]
[420065062,1775645457499,-200.0,0.00014255,2]
[420065063,1775645457508,-227.3694,0.000143,2]
[420065064,1775645457518,-3309.45,0.00014384,2]
[420065065,1775645457528,-166.66,0.00014384,2]
[420065066,1775645457538,-7323.30859515,0.0001439,2]
[420065067,1775645457547,-1613.0,0.00014492,2]
[420065068,1775645457557,-6453.0,0.00014492,2]
[420065069,1775645457566,-793.72,0.00014521,2]
[420065070,1775645457576,-166.66,0.00014583,2]
[420065071,1775645457586,-380.0,0.00014646,2]
[420065072,1775645457595,-247.84704228,0.00014683,2]
[420065073,1775645457606,-1573.0,0.0001472,2]
[420065074,1775645457616,-1573.0,0.0001472,2]
[420065075,1775645457625,-649.88978557,0.00014743,2]
[420065076,1775645457636,-599.60298507,0.00014768,2]
[420065077,1775645457646,-646.65982734,0.00014768,2]
[420065078,1775645457657,-200.0,0.00014769,2]
[420065079,1775645457667,-1481.23780761,0.00014769,2]
[420065080,1775645457677,-209.40437684,0.00014769,2]
[420065081,1775645457686,-1500.0,0.00014795,2]
[420065082,1775645457696,-1000.0,0.00014795,2]
[420065083,1775645457706,-1500.0,0.00014795,2]
[420065084,1775645457717,-1500.0,0.00014795,2]
[420065085,1775645457727,-755.90284256,0.00014795,2]
[420065086,1775645457736,-502.38567456,0.00014795,2]
[420065087,1775645457746,-1500.0,0.00014795,2]
[420065088,1775645457755,-1500.0,0.00014795,2]
[420065089,1775645457766,-1500.0,0.00014795,2]
[420065090,1775645457775,-382.1111067,0.00014795,2]
[420065091,1775645457785,-1018.40309967,0.00014795,2]
[420065092,1775645457795,-1315.21682164,0.00014795,2]
[420065093,1775645457806,-1500.0,0.00014795,2]
[420065094,1775645457816,-1500.0,0.00014795,2]
[420065095,1775645457826,-1070.5730129,0.00014795,2]
[420065096,1775645457836,-793.72,0.00014795,2]
[420065097,1775645457846,-1121.9557587,0.00014838,2]
[420065098,1775645457856,-1104.08207099,0.00014838,2]
[420065099,1775645457866,-1098.12378734,0.00014838,2]
[420065100,1775645457876,-1069.23194601,0.00014838,2]
[420065101,1775645457886,-1997.81603222,0.00014838,2]
[420065102,1775645457896,-1573.0,0.00014879,2]
[420065103,1775645457907,-2068.01430131,0.00015,2]
[420065104,1775645457917,-2756.92717347,0.00015,2]
[420065105,1775645457927,-1007.07827575,0.00015,2]
[420065106,1775645457938,-300.0,0.00015,2]
[420065107,1775645457948,-160.0,0.00015,2]
[420065108,1775645457958,-166.66,0.00015021,2]
[420065109,1775645457968,-162.0,0.00015038,2]
[420065110,1775645457978,-870.19,0.00015068,2]
[420065111,1775645457988,-3309.45,0.00015068,2]
[420065112,1775645457998,-175.026014,0.00015068,2]
[420065113,1775645458008,-175.026014,0.00015068,2]
[420065114,1775645458018,-175.026014,0.00015068,2]
[420065115,1775645458029,-175.026014,0.00015068,2]
[420065116,1775645458040,-793.72,0.00015069,2]
[420065117,1775645458050,-534.73708104,0.0001509,5]
[420065118,1775645458060,-2016.0,0.0001516,2]
[420065119,1775645458071,-200.0,0.00015317,2]
[420065120,1775645458082,-1536.04360649,0.00015317,2]
[420065121,1775645458093,-217.15233878,0.00015317,2]
[420065122,1775645458103,-2000.0,0.00015342,2]
[420065123,1775645458113,-254.25810122,0.00015342,2]
[420065124,1775645458124,-2000.0,0.00015342,2]
[420065125,1775645458135,-2000.0,0.00015342,2]
[420065126,1775645458145,-272.16418036,0.00015342,2]
[420065127,1775645458156,-2000.0,0.00015342,2]
[420065128,1775645458167,-2034.58561509,0.00015342,2]
[420065129,1775645458177,-2000.0,0.00015342,2]
[420065130,1775645458188,-793.74,0.00015343,2]
[420065131,1775645458198,-151.0,0.00015397,2]
[420065132,1775645458209,-2368.03,0.000154,2]
[420065133,1775645458219,-592.0,0.000154,2]
[420065134,1775645458230,-592.0,0.000154,2]
[420065135,1775645458241,-592.0,0.000154,2]
[420065136,1775645458251,-592.0,0.000154,2]
[420065137,1775645458262,-166.66,0.00015459,2]
[420065138,1775645458272,-350.0,0.00015463,2]
[420065139,1775645458284,-4000.0,0.00015507,2]
[420065140,1775645458294,-481.98,0.00015546,2]
[420065141,1775645458304,-500.0,0.00015562,2]
[420065142,1775645458315,-2806.0,0.00015565,2]
[420065143,1775645458326,-261.1834,0.000156,2]
[420065144,1775645458337,-3799.265,0.00015613,2]
[420065145,1775645458347,-239.894,0.00015613,2]
[420065146,1775645458358,-448.46109148,0.0001568,2]
[420065147,1775645458368,-350.0,0.00015714,2]
[420065148,1775645458378,-3309.45,0.00015753,2]
[420065149,1775645458388,-350.0,0.00015788,2]
[420065150,1775645458399,-3595.0,0.00015798,2]
[420065151,1775645458410,-63512.04751178,0.000158,2]
[420065152,1775645458420,-10402.46895429,0.000158,2]
[420065153,1775645458431,-2000.0,0.0001584,2]
[420065154,1775645458442,-2000.0,0.0001584,2]
[420065155,1775645458453,-2000.0,0.0001584,2]
[420065156,1775645458464,-350.0,0.00015847,2]
[420065157,1775645458475,-181.06375366,0.0001585,7]
[420065158,1775645458485,-3595.0,0.00015851,2]
[420065159,1775645458495,-2494.97,0.00015862,2]
[420065160,1775645458506,-200.0,0.00015865,2]
[420065161,1775645458517,-225.18697532,0.00015865,2]
[420065162,1775645458527,-200.0,0.00015871,2]
[420065163,1775645458929,-500.0,0.00015872,2]
[420065164,1775645458942,-200.0,0.00015872,2]
[420065165,1775645458953,-513.13551218,0.00015873,2]
[420065166,1775645458965,-2000.0,0.0001589,2]
[420065167,1775645458977,-2500.0,0.0001589,2]
[420065168,1775645458988,-2500.0,0.0001589,2]
[420065169,1775645458998,-2500.0,0.0001589,2]
[420065170,1775645459010,-1349.56796848,0.0001589,2]
[420065171,1775645459021,-2500.0,0.0001589,2]
[420065172,1775645459032,-3595.0,0.00015892,2]
[420065173,1775645459043,-3595.0,0.00015893,2]
[420065174,1775645459054,-4000.0,0.00015895,2]
[420065175,1775645459066,-384.0,0.00015898,2]
[420065176,1775645459077,-473.42493444,0.000159,2]
[420065177,1775645459087,-22222.89873192,0.000159,3]
[420065178,1775645459098,-197.25964234,0.000159,2]
[420065179,1775645459108,-14234.26557313,0.000159,2]
[420065180,1775645459119,-384.0,0.00015906,2]
[420065181,1775645459130,-2258.0,0.00015941,2]
[420065182,1775645459140,-9035.0,0.00015941,2]
[420065183,1775645459151,-2806.0,0.00015955,2]
[420065184,1775645459162,-3595.0,0.00015989,2]
[420065185,1775645459173,-151.0,0.00015997,2]
[420065186,1775645459183,-151.0,0.00015997,2]
[420065187,1775645459193,-666.0,0.00015999,2]
[420065188,1775645459203,-3309.72904873,0.00015999,2]
[420065189,1775645459214,-3000.0000009,0.00015999,2]
[420065190,1775645459224,-1801223.04207209,0.00016,2]
[420065191,1775645462156,-500.0,8.998e-05,2]
[420065192,1775645462166,-500.0,8.998e-05,2]
[420065193,1775645462176,-500.0,8.998e-05,2]
[420065194,1775645462185,-500.0,8.998e-05,2]
[420065195,1775645462195,-500.0,8.998e-05,2]
[420065196,1775645462205,-500.0,8.998e-05,2]
[420065197,1775645462214,-500.0,8.998e-05,2]
[420065198,1775645462224,-500.0,8.998e-05,2]
[420065199,1775645462233,-505.93547394,8.998e-05,2]
[420065200,1775645462243,-2738.68947605,0.00012556,2]
[420065201,1775645462253,-151.0,0.00013699,2]
[420065202,1775645462263,-151.0,0.00013699,2]
[420065203,1775645462272,-151.0,0.00013699,2]
[420065204,1775645462282,-2272.545345,0.00013699,2]
[420065205,1775645462292,-98819.01967418,0.00016,2]
[420065206,1775645462305,-901.48698902,0.00016,2]
[420065207,1775645462317,-2858.44143548,0.00016,2]
[420065208,1775645462329,-4692.56437331,0.00016,2]
[420065209,1775645462710,-151.0,0.0001,2]
[420065210,1775645462720,-312.2130063,0.000102,2]
[420065211,1775645462729,-506.0,0.000131,2]
[420065212,1775645462738,-1827.748919,0.00013699,2]
[420065213,1775645462747,-151.0,0.00013699,2]
[420065214,1775645462757,-1722.64506207,0.00013699,2]
[420065215,1775645462819,-549.90028293,0.00013699,2]
[420065216,1775645462829,-506.0,0.00014197,2]
[420065217,1775645462838,-506.0,0.00015293,3]
[420065218,1775645462848,-7189.77429811,0.00016,2]
[420065219,1775645463862,-341451.45752076,0.00016,2]
[420065220,1775645463899,-6119.07892469,0.00016,2]
[420065221,1775645469753,10000.01,8.899e-05,2]
[420065222,1775645480332,-6330.92149081,8.899e-05,2]
[420065224,1775645524601,154.0,8.899e-05,3]
[420065225,1775645546921,-300.0,8.898e-05,2]
[420065226,1775645546945,-277.0,8.898e-05,2]
[420065227,1775645546973,-423.0,8.899e-05,2]
[420065228,1775645548027,-1000.0,8.899e-05,2]
[420065229,1775645548427,-1000.0,8.899e-05,2]
[420065230,1775645548768,-1000.0,8.899e-05,2]
[420065231,1775645549210,-1000.0,8.899e-05,2]
[420065232,1775645549528,-1000.0,8.899e-05,2]
[420065233,1775645549870,-1000.0,8.899e-05,2]
[420065234,1775645550279,-1000.0,8.899e-05,2]
[420065235,1775645550672,-1000.0,8.899e-05,2]
[420065236,1775645551064,-1000.0,8.899e-05,2]
[420065237,1775645551406,-1000.0,8.899e-05,2]
[420065238,1775645551744,-1000.0,8.899e-05,2]
[420065239,1775645553849,-1000.0,8.899e-05,2]
[420065240,1775645554034,-1000.0,8.899e-05,2]
[420065241,1775645554534,-1000.0,8.899e-05,2]
[420065242,1775645554726,-1000.0,8.899e-05,2]
[420065243,1775645554822,-1000.0,8.899e-05,2]
[420065244,1775645554981,-1000.0,8.899e-05,2]
[420065245,1775645555543,-1000.0,8.899e-05,2]
[420065246,1775645555625,-1000.0,8.899e-05,2]
[420065247,1775645555787,-1000.0,8.899e-05,2]
[420065248,1775645555863,-1000.0,8.899e-05,2]
[420065249,1775645555949,-1000.0,8.899e-05,2]
[420065250,1775645556310,-1000.0,8.899e-05,2]
[420065251,1775645556702,-1000.0,8.899e-05,2]
[420065252,1775645557101,-1000.0,8.899e-05,2]
[420065253,1775645557509,-1000.0,8.899e-05,2]
[420065254,1775645557842,-1000.0,8.899e-05,2]
[420065255,1775645558239,-1000.0,8.853e-05,2]
[420065256,1775645558654,-586.804937,8.853e-05,2]
[420065257,1775645558681,-413.195063,8.899e-05,2]
[420065258,1775645559053,-1000.0,8.899e-05,2]
[420065259,1775645559487,-1000.0,8.899e-05,2]
[420065260,1775645559833,-1000.0,8.899e-05,2]
[420065261,1775645560269,-1000.0,8.899e-05,2]
[420065262,1775645560698,-1000.0,8.899e-05,2]
[420065263,1775645561025,-1000.0,8.899e-05,2]
[420065264,1775645561410,-591.96985763,8.898e-05,2]
[420065265,1775645561438,-408.03014237,8.898e-05,2]
[420065266,1775645561814,-209.32518519,8.898e-05,2]
[420065267,1775645561845,-154.06121011,8.898e-05,2]
[420065268,1775645561873,-636.6136047,8.899e-05,2]
[420065269,1775645562217,-1000.0,8.899e-05,2]
[420065270,1775645562599,-1000.0,8.899e-05,2]
[420065271,1775645564917,-445.10394155,8.898e-05,2]
[420065272,1775645564944,-554.89605845,8.899e-05,2]
[420065273,1775645565049,-1000.0,8.899e-05,2]
[420065274,1775645565142,-1000.0,8.899e-05,2]
[420065275,1775645565334,-1000.0,8.899e-05,2]
[420065276,1775645565469,-1000.0,8.899e-05,2]
[420065277,1775645565677,-1000.0,8.899e-05,2]
[420065278,1775645566755,-1000.0,8.899e-05,2]
[420065279,1775645567681,-1000.0,8.899e-05,2]
[420065280,1775645568527,-1000.0,8.899e-05,2]
[420065281,1775645569750,-1000.0,8.899e-05,2]
[420065282,1775645570177,-1000.0,8.899e-05,2]
[420065283,1775645570590,-1000.0,8.899e-05,2]
[420065284,1775645570988,-1000.0,8.899e-05,2]
[420065285,1775645571863,-1000.0,8.899e-05,2]
[420065286,1775645572283,-1000.0,8.899e-05,2]
[420065287,1775645572363,-1000.0,8.899e-05,2]
[420065288,1775645573380,-1000.0,8.899e-05,2]
[420065289,1775645575736,-1000.0,8.899e-05,2]
[420065290,1775645576883,-1000.0,8.899e-05,2]
[420065291,1775645621802,2122.51,4.893e-05,2]
[420065292,1775645621994,2122.51,5.151e-05,2]
[420065293,1775645622191,754.99,5.408e-05,2]
[420065294,1775645622217,1367.52,5.408e-05,2]
[420065295,1775645622390,2122.51,5.666e-05,2]
[420065296,1775645622595,2122.51,5.923e-05,2]
[420065297,1775645622832,2122.51,6.181e-05,2]
[420065298,1775645622982,2122.51,6.438e-05,2]
[420065299,1775645623192,2122.51,6.696e-05,2]
[420065300,1775645623403,2122.51,6.953e-05,2]
[420065301,1775645623914,2122.51,7.211e-05,2]
[420065302,1775645623972,2122.51,7.468e-05,2]
[420065303,1775645624035,2122.51,7.726e-05,2]
[420065304,1775645624213,2122.51,7.983e-05,2]
[420065305,1775645624618,2122.51,8.241e-05,2]
[420065306,1775645624828,2122.51,8.498e-05,2]
[420065307,1775645639277,-1000.0,8.756e-05,2]
[420065308,1775645640098,-1000.0,8.756e-05,2]
[420065309,1775645641112,-122.51,8.756e-05,2]
[420065310,1775645641136,-877.49,8.799e-05,2]
[420065311,1775645641566,-1000.0,8.799e-05,2]
[420065312,1775645641994,-1000.0,8.799e-05,2]
[420065313,1775645643505,-300.0,8.798e-05,2]
[420065314,1775645643528,-700.0,8.799e-05,2]
[420065315,1775645645646,153.0,8.498e-05,3]
[420065316,1775645647024,-1000.0,8.799e-05,2]
[420065317,1775645647970,-1000.0,8.799e-05,2]
[420065318,1775645648866,-1000.0,8.799e-05,2]
[420065319,1775645649787,-1000.0,8.799e-05,2]
[420065320,1775645650689,-1000.0,8.799e-05,2]
[420065321,1775645651535,-1000.0,8.799e-05,2]
[420065322,1775645659254,-276.0,8.799e-05,2]
[420065323,1775645659279,-724.0,8.799e-05,2]
[420065324,1775645679918,1889.59,8.386e-05,2]
[420065325,1775645707533,152.0,8.386e-05,3]
[420065326,1775645726314,-150.0,8.799e-05,2]
[420065327,1775645766865,152.0,8.386e-05,3]
[420065328,1775645811994,3110.42,8.07e-05,2]
[420065329,1775645812027,4500.87,8.07e-05,2]
[420065330,1775645815762,1500.0,8.07e-05,2]
[420065331,1775645830085,7294.602331,8e-05,5]
[420065333,1775645952677,152.0,8.386e-05,3]
[420065334,1775646012473,152.0,8.386e-05,3]
[420065336,1775646089870,-211.58,8.519e-05,2]
[420065337,1775646089900,-272.0,8.519e-05,2]
[420065338,1775646089930,-423.16,8.522e-05,2]
[420065339,1775646089959,-211.58,8.524e-05,2]
[420065344,1775646130743,214.0,8.386e-05,3]
[420065348,1775646147076,500.0,7.926e-05,2]
[420065350,1775646185185,183.0,8.386e-05,3]
[420065351,1775646251512,168.0,8.386e-05,3]
[420065352,1775646256882,160.0,8e-05,7]
[420065353,1775646267563,200.0,8.3e-05,2]
[420065354,1775646277589,2063.37,8.59e-05,2]
[420065355,1775646277615,4443.03,8.59e-05,2]
[420065356,1775646283716,2943.39,7.905e-05,2]
[420065357,1775646308966,160.0,8.386e-05,3]
[420065358,1775646339773,-150.0,8.6e-05,2]
[420065359,1775646339799,-273.0,8.6e-05,2]
[420065360,1775646368253,1603.89,7.835e-05,2]
[420065362,1775646460344,5000.01,8e-05,2]
[420065363,1775646460369,5601.70066966,8e-05,2]
[420065364,1775646526014,-273.0,8.612e-05,2]
[420065366,1775646541089,-250.0,8.612e-05,2]
[420065370,1775646632413,-5000.0,8.619e-05,2]
[420065371,1775646632424,-5000.0,8.621e-05,2]
[420065372,1775646632435,-300.0,8.624e-05,2]
[420065373,1775646632445,-300.0,8.624e-05,2]
[420065374,1775646632456,-1200.0,8.624e-05,2]
[420065375,1775646632467,-1103.04119762,8.624e-05,2]
[420065376,1775646632478,-500.27683873,8.633e-05,2]
[420065377,1775646632488,-500.0,8.633e-05,2]
[420065378,1775646632499,-461.10773956,8.633e-05,2]
[420065379,1775646632510,-500.25334159,8.633e-05,2]
[420065380,1775646632519,-500.0,8.633e-05,2]
[420065381,1775646632530,-500.0,8.633e-05,2]
[420065382,1775646632540,-500.0,8.633e-05,2]
[420065383,1775646632550,-5000.0,8.636e-05,2]
[420065384,1775646632560,-1103.04119762,8.64e-05,2]
[420065385,1775646632570,-309.086314,8.644e-05,2]
[420065386,1775646632581,-1547090.30338388,8.654e-05,2]
[420065387,1775646632594,-83911.90858675,8.654e-05,2]
[420065388,1775646632606,-41059.16376651,8.654e-05,2]
[420065389,1775646632619,-126559.80983754,8.654e-05,2]
[420065390,1775646632631,-1254.41808677,8.654e-05,2]
[420065391,1775646632643,-31747.19693643,8.654e-05,2]
[420065395,1775646638069,1924.47,7.828e-05,2]
[420065396,1775646638208,-270.98748127,8.654e-05,2]
[420065397,1775646638226,-1393.9530976,8.654e-05,2]
[420065398,1775646638239,-1000.0,8.654e-05,2]
[420065399,1775646638252,-665712.25882325,8.654e-05,2]
[420065400,1775646638262,-1103.04119762,8.656e-05,2]
[420065401,1775646638272,-2500.0,8.656e-05,2]
[420065402,1775646638282,-3000.0,8.656e-05,2]
[420065403,1775646638293,-602.8020892,8.754e-05,2]
[420065404,1775646638303,-1000.0,8.754e-05,2]
[420065405,1775646638314,-438.0,8.754e-05,2]
[420065406,1775646638324,-150.0,8.754e-05,2]
[420065407,1775646638335,-28566.32715686,8.755e-05,2]
[420065408,1775646638346,-245.15189902,8.755e-05,2]
[420065409,1775646638356,-500.0,8.755e-05,2]
[420065410,1775646638367,-394.28109436,8.755e-05,2]
[420065411,1775646638377,-197.51949262,8.755e-05,2]
[420065412,1775646638387,-500.0,8.755e-05,2]
[420065413,1775646638398,-603.53751985,8.755e-05,2]
[420065414,1775646638409,-500.0,8.755e-05,2]
[420065415,1775646638419,-569.5338413,8.755e-05,2]
[420065416,1775646638430,-500.0,8.755e-05,2]
[420065417,1775646638440,-550.0,8.755e-05,2]
[420065418,1775646638450,-500.0,8.755e-05,2]
[420065419,1775646638460,-500.0,8.755e-05,2]
[420065420,1775646638471,-531.71301134,8.755e-05,2]
[420065421,1775646638480,-500.0,8.755e-05,2]
[420065422,1775646638490,-500.0,8.755e-05,2]
[420065423,1775646638500,-500.0,8.755e-05,2]
[420065424,1775646638511,-500.0,8.755e-05,2]
[420065425,1775646638521,-500.0,8.755e-05,2]
[420065426,1775646638532,-180.9569223,8.755e-05,2]
[420065427,1775646638542,-500.0,8.755e-05,2]
[420065428,1775646638552,-500.0,8.755e-05,2]